Cogmind - Beta 10 @@@ ROGUE MODE // 2020.09.15 @ 23:57:44 Player: Katana1232 Result: Destroyed by Y-45 Defender with Heavy Assault Rifle Performance ------------- Evolutions (2) 1000 Regions Visited (4) 800 Robots Destroyed (21) 105 Value Destroyed (694) 694 Prototype IDs (2) 40 Alien Tech Used (0) 0 Bonus (50) 50 TOTAL SCORE: 2689 Bonus ------- Follower Combat Kills 50 Cogmind --------- Core Integrity 0/550 Matter 166/300 Energy 100/100 System Corruption 0% Temperature Cool (9) Movement Core (550) Ox10 Location -8/Materials Parts ------- > --- POWER (1) -------- (None) > --- PROPULSION (4) --- (None) > --- UTILITY (4) ------ High-capacity Storage Unit > --- WEAPON (2) ------- (None) > --- INVENTORY (12) --- Ion Engine Ion Engine Sensor Array ECM Suite Peak State ------------ > --- POWER ------------ Light Nuclear Core > --- PROPULSION ------- Aluminum Leg Aluminum Leg Aluminum Leg Aluminum Leg > --- UTILITY ---------- High-capacity Storage Unit Core Shielding Hardened Medium Armor Plating Hardened Medium Armor Plating > --- WEAPON ----------- Minigun Minigun > --- INVENTORY -------- Ion Engine Ion Engine Aluminum Leg Sensor Array ECM Suite Medium Laser Beam Rifle Particle Gun Mining Laser [Rating: 22] Favorites ----------- Power Light Nuclear Core Engine Ion Engine Power Core Light Nuclear Core Propulsion Aluminum Leg Treads Light Treads Leg Aluminum Leg Utility Large Storage Unit Storage Large Storage Unit Protection Hardened Medium Armor Plating Weapon Assault Rifle Energy Gun Medium Laser Ballistic Gun Assault Rifle Special Weapon Mining Laser Build | -11 -10 -10 -9 -8 ------- Run | Scr Mat Min Mat Mat Slots Evolved 4 | . . . 2 2 Power . | . . . . . Propulsion 2 | . . . 2 . Utility 2 | . . . . 2 Weapon . | . . . . . Parts Attached 41 | 8 6 7 9 11 Power 6 | 1 1 . 2 2 Engine 2 | 1 . . 1 . Core 4 | . 1 . 1 2 Reactor . | . . . . . Propulsion 11 | 3 2 2 2 2 Treads 1 | 1 . . . . Leg 10 | 2 2 2 2 2 Wheel . | . . . . . Hover . | . . . . . Flight . | . . . . . Utility 10 | 2 3 . 3 2 Device . | . . . . . Storage 7 | 2 3 . 2 . Processor . | . . . . . Hackware . | . . . . . Protection 3 | . . . 1 2 Artifact . | . . . . . Weapon 14 | 2 . 5 2 5 Energy Gun 5 | . . 2 . 3 Energy Cannon . | . . . . . Ballistic Gun 7 | 2 . 2 2 1 Ballistic Cannon . | . . . . . Launcher . | . . . . . Special Weapon 2 | . . 1 . 1 Impact Weapon . | . . . . . Slashing Weapon . | . . . . . Piercing Weapon . | . . . . . Special Melee Weapon . | . . . . . Unidentified Prototypes . | . . . . . Parts Lost 20 | . . 2 2 16 Power 3 | . . . 1 2 Propulsion 6 | . . . 1 5 Utility 3 | . . . . 3 Weapon 8 | . . 2 . 6 Highest Loss Streak 16 | . . 1 1 16 Average Slot Usage (%) 95 | . 97 99 97 74 Engine 5 | . 13 . 3 . Core 7 | . . 14 6 5 Leg 30 | . 28 28 42 23 Storage 22 | . 25 28 15 9 Protection 3 | . . . 6 19 Energy Gun 4 | . . 9 4 2 Ballistic Gun 18 | . 28 15 12 12 Special Weapon 1 | . . 1 4 . Naked Turns . | . . . . . Heaviest Build 75 | 17 41 42 75 62 Greatest Support 40 | 20 20 20 40 40 Greatest Overweight (x) 13 | 2 2 4 1 13 Average Overweight (x) 1 | . 1 1 . 1 Largest Inventory Capacity 20 | 8 16 16 20 12 Average Capacity 14 | 6 13 16 15 12 Most Carried 18 | 6 16 16 18 11 Average Carried 12 | 4 9 15 13 8 Final Capacity 16 | 8 16 16 12 12 Final Carried 16 | 6 15 16 12 4 Class Distribution -------------------- 53% | Mutant 45% | Scavenger-Mutant Dominant Class ---------------- Mutant | -10/Materials Scavenger-Mutant | -10/Mines Scavenger-Mutant | -9/Materials Mutant | -8/Materials Resources | -11 -10 -10 -9 -8 ----------- Run | Scr Mat Min Mat Mat Matter Collected 749 | 286 138 146 179 . Remotely . | . . . . . Salvage Created 856 | 85 224 248 229 70 Parts 54 | 1 10 20 18 5 Haulers Intercepted . | . . . . . Recyclers Shooed 1 | . . 1 . . Parts Field Recycled . | . . . . . Retrieved Matter . | . . . . . Parts Self-Destructed . | . . . . . Prevented . | . . . . . Kills | -11 -10 -10 -9 -8 ------- Run | Scr Mat Min Mat Mat Combat Hostiles Destroyed 20 | . 5 7 5 3 Guns 20 | . 5 7 5 3 Classes Destroyed 4 | 1 1 2 . . Recycler 1 | 1 . . . . Swarmer 5 | . . 3 . 2 Grunt 12 | . 5 2 4 1 Sentry 3 | . . 2 1 . Best Kill Streak 3 | 1 3 3 2 3 Combat Bots Only 3 | . 3 3 2 3 Max Kills in Single Turn 1 | 1 1 1 1 1 Gunslinging . | . . . . . Exploded . | . . . . . Melee . | . . . . . Uniques/NPCs Destroyed . | . . . . . Combat | -11 -10 -10 -9 -8 -------- Run | Scr Mat Min Mat Mat Damage Taken 2976 | . 238 505 476 1757 Core 704 | . 29 77 44 554 Absorbed by Shields . | . . . . . Core Remaining (%) 82 | 100 . 57 89 . Volleys Fired 79 | 1 13 24 26 15 Largest 2 | 2 2 2 2 2 Hottest 90 | 40 40 73 50 90 Shots Fired 131 | 2 26 38 43 22 Gun 131 | 2 26 38 43 22 Cannon . | . . . . . Launcher . | . . . . . Special . | . . . . . Kinetic 109 | 2 26 32 34 15 Thermal 22 | . . 6 9 7 Explosive . | . . . . . Electromagnetic . | . . . . . Robot Hit Streak 12 | 2 7 8 12 3 Robot Miss Streak 5 | . 2 2 4 5 Penetration Max . | . . . . . Secondary Targets 2 | . . 1 1 . Max Gunslinging Chain 1 | . . 1 1 . Shots Hit Robots 83 | 2 16 28 26 11 Core Hits 36 | 1 11 11 7 6 Critical Hits . | . . . . . Critical Kills . | . . . . . Critical Parts Destroyed . | . . . . . Melee Attacks . | . . . . . Impact . | . . . . . Slashing . | . . . . . Piercing . | . . . . . Sneak Attacks . | . . . . . Combat Hostiles . | . . . . . Follow-up Attacks . | . . . . . Damage Inflicted 1221 | 27 213 378 403 200 Guns 1218 | 27 213 378 403 197 Cannons . | . . . . . Explosions . | . . . . . Melee . | . . . . . Ramming 3 | . . . . 3 Kinetic 1061 | 27 213 314 353 154 Thermal 157 | . . 64 50 43 Explosive . | . . . . . Electromagnetic . | . . . . . Impact . | . . . . . Slashing . | . . . . . Piercing . | . . . . . Highest Corruption . | . . . . . Average Corruption . | . . . . . Corruption Purged . | . . . . . Overload Shots . | . . . . . Overflow Damage . | . . . . . Projectiles . | . . . . . Explosions . | . . . . . Melee . | . . . . . Knockbacks . | . . . . . Impact . | . . . . . Kinetic . | . . . . . Secondary . | . . . . . Self-Inflicted Damage 1 | . . . . 1 Shots . | . . . . . Rammed 1 | . . . . 1 Targets Rammed 1 | . . . . 1 Kicked . | . . . . . Crushed . | . . . . . Highest Temperature 276 | . 2 72 92 276 Average Temperature 73 | . 2 18 37 174 Received Heat Transfer 1161 | . 111 174 192 684 Effects 4 | . . . . 4 Interference 4 | . . . . 4 Siege Activations . | . . . . . Robots Corrupted . | . . . . . Combat Hostiles . | . . . . . Parts Fried . | . . . . . Impact Corruptions . | . . . . . Robots Melted . | . . . . . Combat Hostiles . | . . . . . Parts Melted . | . . . . . Heat Transferred 444 | . . 185 148 111 Parts Sabotaged . | . . . . . Parts Stolen . | . . . . . Parts Stripped . | . . . . . Power Chain Reactions . | . . . . . Missiles Intercepted . | . . . . . Alert | -11 -10 -10 -9 -8 ------- Run | Scr Mat Min Mat Mat Peak Influence 267 | 5 80 186 267 127 Initial 112 | . 3 31 . 112 Average 66 | 1 18 77 122 94 Maximum Alert Level 1 | . . . 1 . Low Security (%) 95 | 100 100 100 78 100 Level 1 4 | . . . 21 . Level 2 . | . . . . . Level 3 . | . . . . . Level 4 . | . . . . . Level 5 . | . . . . . High Security . | . . . . . Max Security . | . . . . . Squads Dispatched 8 | . 2 . 2 4 Investigation 1 | . 1 . . . Extermination . | . . . . . Reinforcement 4 | . 1 . 2 1 Assault . | . . . . . Garrison 3 | . . . . 3 Intercept . | . . . . . Construction Impeded . | . . . . . Haulers Reinforced . | . . . . . Stealth | -11 -10 -10 -9 -8 --------- Run | Scr Mat Min Mat Mat Distress Signals 3 | . 1 . 1 1 Communications Jammed . | . . . . . Distress Signals . | . . . . . Times Spotted 42 | . 9 7 14 12 Peak Tracking Total 9 | . 3 3 4 9 Tactical Retreats 1 | . 1 . . . Traps | -11 -10 -10 -9 -8 ------- Run | Scr Mat Min Mat Mat Traps Triggered 1 | . 1 . . . Indirectly . | . . . . . Trap Hack Attempts . | . . . . . Triggered . | . . . . . Disarmed . | . . . . . Reprogrammed . | . . . . . Reused . | . . . . . Traps Extracted . | . . . . . Installed . | . . . . . Triggered . | . . . . . Machines | -11 -10 -10 -9 -8 ---------- Run | Scr Mat Min Mat Mat Machines Disabled 4 | . 1 . 3 . Max in Single Turn 1 | . 1 . 1 . Machines Sabotaged . | . . . . . Garrisons Compromised . | . . . . . Overloaded Fab Kills . | . . . . . Fab Network Shutdowns . | . . . . . Hacking | -11 -10 -10 -9 -8 --------- Run | Scr Mat Min Mat Mat Machines Accessed 3 | . 2 . 1 . Terminals 1 | . . . 1 . Fabricators . | . . . . . Repair Stations . | . . . . . Recycling Units 2 | . 2 . . . Scanalyzers . | . . . . . Garrison Access . | . . . . . Total Hacks 6 | . 4 . 2 . Successful 6 | . 4 . 2 . Failed . | . . . . . Catastrophic . | . . . . . Database Lockouts . | . . . . . Manual . | . . . . . Terminals 2 | . . . 2 . Fabricators . | . . . . . Repair Stations . | . . . . . Recycling Units 4 | . 4 . . . Scanalyzers . | . . . . . Garrison Access . | . . . . . Terminal Hacks 2 | . . . 2 . Record 1 | . . . 1 . Prototype ID Bank 1 | . . . 1 . Fabricator Hacks . | . . . . . Repair Station Hacks . | . . . . . Recycling Unit Hacks 4 | . 4 . . . Recycle Component 1 | . 1 . . . Process 1 | . 1 . . . Report Inventory 2 | . 2 . . . Scanalyzer . | . . . . . Garrison Access Hacks . | . . . . . Unauthorized Hacks . | . . . . . Terminals . | . . . . . Fabricators . | . . . . . Repair Stations . | . . . . . Recycling Units . | . . . . . Scanalyzers . | . . . . . Garrison Access . | . . . . . Data Cores Recovered . | . . . . . Used . | . . . . . Hacking Detections 2 | . 2 . . . Full Trace Events 1 | . 1 . . . Feedback Events . | . . . . . Feedback Blocked . | . . . . . Robot Schematics Acquired . | . . . . . Robots Built . | . . . . . Matter . | . . . . . Time . | . . . . . Total Robot Build Rating . | . . . . . Part Schematics Acquired . | . . . . . Parts Built . | . . . . . Matter . | . . . . . Time . | . . . . . Total Part Build Rating . | . . . . . Parts Repaired . | . . . . . Time . | . . . . . Parts Recycled 1 | . 1 . . . Recycled Matter 3 | . 3 . . . Retrieved Matter . | . . . . . Retrieved Components . | . . . . . Parts Scanalyzed . | . . . . . Part Schematics Acquired . | . . . . . Parts Damaged . | . . . . . Bothacking | -11 -10 -10 -9 -8 ------------ Run | Scr Mat Min Mat Mat Used RIF Installer . | . . . . . Robots Hacked . | . . . . . Non-combat . | . . . . . Combat . | . . . . . Robot Hacks Applied . | . . . . . Relay Couplers Released . | . . . . . Robots Rewired . | . . . . . Allies Hacked . | . . . . . Hacks Repelled . | . . . . . Allies | -11 -10 -10 -9 -8 -------- Run | Scr Mat Min Mat Mat Total Allies 1 | . . 1 . . Largest Group 1 | . . 1 1 . Highest-Rated Group 31 | . . 31 31 . Highest-Rated Ally 31 | . . 31 31 . Total Orders . | . . . . . Ally Attacks 15 | . . . 15 . Total Damage 149 | . . . 149 . Kills 4 | . . . 4 . Allies Corrupted . | . . . . . Allies Melted . | . . . . . Intel | -11 -10 -10 -9 -8 ------- Run | Scr Mat Min Mat Mat Robot Analysis Total . | . . . . . Derelict Logs Recovered 1 | . . 1 . . Drone Launches . | . . . . . Drone Recoveries . | . . . . . Exploration | -11 -10 -10 -9 -8 ------------- Run | Scr Mat Min Mat Mat Turns Passed 1691 | 96 518 578 357 142 Spaces Moved 820 | 59 269 275 171 46 Core 29 | 26 . . . 3 Treads . | . . . . . Legs 791 | 33 269 275 171 43 Wheels . | . . . . . Hover . | . . . . . Flight . | . . . . . Fastest Speed 50 | 50 120 150 120 150 Average Speed 162 | 123 164 176 145 183 Slowest Speed 700 | 150 180 240 150 700 Overloaded Moves . | . . . . . Propulsion Burnouts . | . . . . . Robots Hopped . | . . . . . Cave-ins Triggered . | . . . . . Exploration Rate (%) 25 | 4 33 58 24 7 Regions Visited 4 Branch Regions 1 Pre-discovered Areas . | . . . . . Known Exits Taken . | . . . . . Unknown Exits Taken 4 | 1 1 1 1 . Scrap Searched . | . . . . . Spaces Dug . | . . . . . Terrain Destroyed . | . . . . . Melee . | . . . . . Projectile . | . . . . . AOE . | . . . . . Terrain Rammed . | . . . . . Walls Destroyed . | . . . . . Machines Disabled . | . . . . . Actions | -11 -10 -10 -9 -8 --------- Run | Scr Mat Min Mat Mat Total 1055 | 80 318 330 246 81 Wait 64 | . 17 17 23 7 Move 816 | 58 268 274 170 46 Hop . | . . . . . Pick Up 38 | 12 12 5 8 1 Fast Attach 2 | 2 . . . . Attach 22 | 6 1 2 4 9 Detach . | . . . . . Swap 17 | . 5 5 5 2 Drop 16 | 1 2 3 10 . Fire 79 | 1 13 24 26 15 Melee . | . . . . . Ram 1 | . . . . 1 Kick . | . . . . . Crush . | . . . . . Escape Stasis . | . . . . . Rewire . | . . . . . Trap . | . . . . . Miscellaneous . | . . . . . Route ------- -11/Scrapyard -10/Materials -10/Mines -9/Materials -8/Materials (discovered 1 exit: Sto) History --------- Turn | Location | Event 15 | -11/Scrapyard | Discovered new exit (range 16) 97 | -11/Scrapyard | Entered Materials 300 | -10/Materials | Build established: Mutant 482 | -10/Materials | Discovered new exit (range 7) 615 | -10/Materials | Entered Mines 624 | -10/Mines | Met a Derelict bent on vengeance 976 | -10/Mines | Discovered new exit (range 5) 1009 | -10/Mines | Build established: Scavenger-Mutant 1109 | -10/Mines | Received a Mining Laser from a helpful Derelict 1193 | -10/Mines | Entered Materials 1193 | -9/Materials | Accompanied by 1 ally 1193 | -9/Materials | Evolved 2 slots: Propulsion x2 1547 | -9/Materials | Discovered new exit (range 3) 1550 | -9/Materials | Entered another Materials area 1550 | -8/Materials | Evolved 2 slots: Utility x2 1551 | -8/Materials | Identified exit to Storage 1677 | -8/Materials | Core integrity fell below 50% 1690 | -8/Materials | Core integrity fell below 20% 1692 | -8/Materials | Destroyed by Y-45 Defender with Heavy Assault Rifle Last Messages --------------- K-01 Serf collects debris. Aluminum Leg destroyed. R-06 Scavenger collects Aluminum Leg. K-01 Serf collects debris. Minigun destroyed. K-01 Serf collects debris. R-06 Scavenger collects Lgt. Ion Engine. K-01 Serf collects debris. Lgt. Nuclear Core destroyed. Med. Laser destroyed. R-06 Scavenger collects Flight Unit. K-01 Serf collects debris. Core Shielding destroyed. R-06 Scavenger collects Lgt. Ion Engine. K-01 Serf collects debris. R-06 Scavenger collects Lgt. Nuclear Core. K-01 Serf collects debris. Slammed into Y-45 Defender. G-47 Trooper destroyed. K-01 Serf collects debris. Map ----- +----------------------------------------------------+ | | | | | | | | | | | | | | | | | ?????????????????????????????????????????????????? | | ?????????????????????????????????????????????????? | | ?????????????????????????????????????????????????? | | ?????????????????????????????????????????????????? | | ????????????##########???????????????????????????? | | ????????????# #???????????????????????????? | | ????????????# """ #???????????????????????????? | | ????????????# """ #???????????????????????????? | | ????????????# """ ! #???????????????????????????? | | ????????????# #???????????????????????????? | | ????????##### """ ! #???????????????????????????? | | ????????# # """ #???????????????????????????? | | ????????# # """ #???????????????????????????? | | ????????# # #???????????????????????????? | | ????????# ###+####################+######+#????? | | ????????# ???? | | ????????# YgYk ???? | | ????????# Y@%Y % ???? | | ????????######################% r#????????? | | ?????????????????????????????# %% #????????? | | ?????????????????????????????# """ #????????? | | ?????????????????????????????# "G #????????? | | ?????????????????????????????# """ ???????? | | ?????????????????????????????+ ?????? | | ?????????????????????????????# ?????? | | ?????????????????????????????# ###?####????????? | | ?????????????????????????????? " #???????????????? | | ??????????????????????????????"% #???????????????? | | ?????????????????????????????? #???????????????? | | ?????????????????????????????? #???????????????? | | ?????????????????????????????? +???????????????? | | ?????????????????????????????? #???????????????? | | ?????????????????????????????? ????????????????? | | ?????????????????????????????????????????????????? | | ?????????????????????????????????????????????????? | | ?????????????????????????????????????????????????? | | ?????????????????????????????????????????????????? | | ?????????????????????????????????????????????????? | | ?????????????????????????????????????????????????? | | ?????????????????????????????????????????????????? | | ?????????????????????????????????????????????????? | | ?????????????????????????????????????????????????? | +----------------------------------------------------+ Best States ------------- Heat Dissipation 31 Energy Generation 14 Energy Capacity 250 Matter Stores 300 Matter Capacity 300 Sight Range 16 Terrain Scan Density 10 Armor Coverage 450 Core Shielding 20 Evasion (%) 50 Item Schematics ----------------- None Robot Schematics ------------------ None Fabricated ------------ Nothing Alien Tech Used ----------------- None Achievements -------------- None Challenges ------------ None Game ------ Seed FlightPotentialSystem Manual? 0 Play Time 00:36:09 Cumulative 10.2 hours Start 2020.09.15 @ 23:17:41 End 2020.09.15 @ 23:57:44 Sessions 1 Manual Loads 0 Difficulty Rogue Special Mode None Game No. 18 Rogue 9 Adventurer 9 Explorer 0 Win Type - Total 0 Types 0/0/0/0/0/0/0/0/0 Lore% 1 Gallery% 16 Achievement% 9 Wizard Run 0 Options --------- ASCII 0 Keyboard 0 Movement Mouse Keybinds 0 Fullscreen 1 Font 12/Tallcaps Map View 83x54 Tactical HUD 0 Map Filters NONE Filters NONE Steam 1 RUN: 2df6ac57-0dce-44f4-940e-3f77a0bf6330